bitfinex/quotes_SOLUSD_20240717
["timestamp","ask_amount","ask_price","bid_price","bid_amount"]
[1721242636148,6.3747,156.87,156.82,37.8776]
[1721242636862,6.3743,156.88,156.82,37.8776]
[1721242637248,6.3743,156.88,156.83,15.56]
[1721242638676,6.3743,156.88,156.83,21.9361]
[1721242640196,6.3743,156.88,156.84,15.56]
[1721242640971,6.3748,156.87,156.84,15.56]
[1721242641387,15.0243,156.91,156.82,6.65763832]
[1721242641710,6.3764,156.83,156.81,16.0328]
[1721242641874,15.56,156.86,156.81,31.5928]
[1721242643200,21.9352,156.86,156.81,31.5928]
[1721242643518,6.3752,156.86,156.82,15.56]
[1721242644012,6.3755,156.85,156.82,15.56]
[1721242644818,6.3752,156.86,156.82,15.56]
[1721242646411,15.9361,156.88,156.81,31.5928]
[1721242646611,20.0,156.87,156.81,31.5928]
[1721242646815,6.3756,156.85,156.81,31.5928]
[1721242647296,6.3749,156.87,156.84,15.56]
[1721242647610,6.3749,156.87,156.83,15.56]
[1721242648180,6.3749,156.87,156.81,16.0328]
[1721242648181,6.3751,156.86,156.81,16.0328]
[1721242648382,6.3751,156.86,156.82,15.56]
[1721242648910,15.56,156.87,156.81,16.0328]
[1721242649117,15.56,156.86,156.81,31.5928]
[1721242649314,6.3761,156.84,156.81,31.5928]
[1721242649688,6.3761,156.84,156.82,15.56]
[1721242649993,15.56,156.87,156.82,15.56]
[1721242650311,6.3754,156.86,156.82,15.56]
[1721242650609,6.3754,156.86,156.82,16.83297407]
[1721242650816,6.3757,156.85,156.82,15.56]
[1721242653082,15.56,156.86,156.81,31.5928]
[1721242653706,6.3756,156.85,156.81,16.0328]
[1721242653889,6.3756,156.85,156.82,15.56]
[1721242655616,6.3756,156.85,156.81,15.56]
[1721242656500,6.376,156.84,156.8,15.5600241]
[1721242658407,15.9353,156.89,156.81,31.5028]
[1721242658716,20.0,156.88,156.8,15.5600241]
[1721242660418,6.376,156.84,156.8,15.5600241]
[1721242661899,6.3764,156.83,156.8,2.41e-05]
[1721242662801,6.376,156.84,156.8,2.41e-05]
[1721242663608,6.3764,156.83,156.8,2.41e-05]
[1721242663802,6.3764,156.83,156.8,16.83537873]
[1721242664411,6.3764,156.83,156.8,15.5600241]
[1721242665807,6.3764,156.83,156.8,16.83537895]
[1721242666928,6.3764,156.83,156.8,15.5600241]
[1721242667123,6.3764,156.83,156.8,2.41e-05]
[1721242668822,6.3768,156.82,156.8,2.41e-05]
[1721242671399,6.3771,156.81,156.8,2.41e-05]
[1721242675002,41.9371,156.81,156.8,2.41e-05]
[1721242682227,26.3771,156.81,156.8,2.41e-05]
[1721242700139,26.5471,156.81,156.8,2.41e-05]
[1721242705357,57.6671,156.81,156.8,2.41e-05]
[1721242716039,102.6671,156.81,156.8,2.41e-05]
[1721242716871,71.5471,156.81,156.8,2.41e-05]
[1721242720565,87.1071,156.81,156.8,2.41e-05]
[1721242722338,42.1071,156.81,156.8,2.41e-05]
[1721242722741,48.7564878,156.81,156.8,2.41e-05]
[1721242722940,93.7564878,156.81,156.8,2.41e-05]
[1721242728467,78.1964878,156.81,156.8,2.41e-05]
[1721242741172,155.9964878,156.81,156.8,2.41e-05]
[1721242745190,110.9964878,156.81,156.8,2.41e-05]
[1721242745486,155.9964878,156.81,156.8,2.41e-05]
[1721242754798,13.0264878,156.81,156.8,2.41e-05]
[1721242754973,6.3771,156.81,156.8,6.1613241]
[1721242755298,15.9381,156.86,156.8,22.3641241]
[1721242755477,15.56,156.83,156.8,22.3641241]
[1721242755672,15.9381,156.86,156.8,22.3641241]
[1721242755993,15.56,156.85,156.8,37.9241241]
[1721242756994,20.0,156.84,156.8,37.9241241]
[1721242757296,35.56,156.84,156.8,22.3641241]
[1721242758493,35.56,156.84,156.8,23.63945355]
[1721242759696,6.3771,156.81,156.8,23.63945355]
[1721242759891,20.0,156.84,156.8,23.63945355]
[1721242760084,20.0,156.85,156.8,23.63945355]
[1721242760486,20.0,156.85,156.8,39.19945355]
[1721242761294,20.0,156.85,156.8,23.63945355]
[1721242761478,20.0,156.85,156.8,22.3641241]
[1721242762489,6.3771,156.81,156.8,22.3641241]
[1721242765284,20.0,156.85,156.8,22.3641241]
[1721242765489,6.3767,156.82,156.8,37.9241241]
[1721242765685,6.3767,156.82,156.8,22.3641241]
[1721242766382,6.3767,156.82,156.8,23.17153853]
[1721242766577,6.3771,156.81,156.8,23.17153853]
[1721242766793,6.3771,156.81,156.8,22.3641241]
[1721242773209,6.3768,156.82,156.8,22.3641241]
[1721242774610,6.3768,156.82,156.81,1.27531962]
[1721242775010,6.3768,156.82,156.8,22.3641241]
[1721242775206,6.3764,156.83,156.8,22.3641241]
[1721242775414,6.3764,156.83,156.8,23.5380915]
[1721242776205,6.3764,156.83,156.8,22.3641241]
[1721242776900,6.3767,156.82,156.8,22.3641241]
[1721242777909,6.3764,156.83,156.8,37.9241241]
[1721242778411,6.3764,156.83,156.81,1.2658865]
[1721242778803,6.3767,156.82,156.81,1.2658865]
[1721242779198,6.3762,156.84,156.81,15.56]
[1721242779399,6.3763,156.83,156.82,16.83513129]
[1721242779703,6.3763,156.83,156.81,15.56]
[1721242779901,6.3763,156.83,156.8,22.3641241]
[1721242780102,6.3763,156.83,156.8,37.9241241]
[1721242782797,6.3768,156.82,156.8,37.9241241]
[1721242783001,6.3768,156.82,156.8,22.3641241]
[1721242783232,6.3771,156.81,156.8,22.3641241]
[1721242783405,6.3768,156.82,156.8,22.3641241]
[1721242783726,15.4498,156.93,156.81,15.56]
[1721242783899,15.56,156.87,156.82,15.56]
[1721242784726,6.3752,156.86,156.82,15.56]
[1721242785114,6.3752,156.86,156.81,15.56]
[1721242785309,6.3752,156.86,156.81,21.9368]
[1721242786211,15.56,156.86,156.81,15.56]
[1721242786525,22.09915149,156.93,156.8,22.3641241]
[1721242786526,21.936,156.84,156.8,22.3641241]
[1721242787816,15.56,156.84,156.8,28.7416241]
[1721242788023,21.936,156.84,156.8,22.3641241]
[1721242788323,15.56,156.84,156.8,28.7416241]
[1721242789631,21.9359,156.84,156.8,22.3641241]
[1721242790551,15.56,156.84,156.8,28.7416241]
[1721242791043,21.9356,156.85,156.8,28.7416241]
[1721242792550,15.56,156.84,156.8,28.7416241]
[1721242793645,6.3752,156.86,156.8,28.7416241]
[1721242794022,6.3752,156.86,156.81,6.377]
[1721242795831,6.3755,156.85,156.8,44.3015241]
[1721242796032,21.9355,156.85,156.8,44.3015241]
[1721242796526,21.9355,156.85,156.8,28.7415241]
[1721242799953,6.376,156.84,156.8,22.3641241]
[1721242801826,6.3756,156.85,156.8,28.7415241]
[1721242802446,15.935,156.89,156.81,15.9426]
[1721242802657,21.9352,156.86,156.81,22.3194]
[1721242802957,22.58011299,156.92,156.81,31.5026]
[1721242803133,20.17,156.91,156.81,31.5026]
[1721242803454,6.3751,156.86,156.81,37.8796]
[1721242803960,6.3751,156.87,156.82,7.6517459]
[1721242804168,20.0,156.86,156.83,16.835056]
[1721242804459,20.0,156.86,156.82,21.9366]
[1721242804929,26.3751,156.86,156.82,15.56]
[1721242806854,6.3756,156.85,156.81,15.56]
[1721242808432,6.376,156.84,156.8,44.3016241]
[1721242808665,6.3756,156.85,156.8,44.3016241]
[1721242808961,40.87108997,156.96,156.87,6.3745]
[1721242808962,16.1947,156.96,156.87,6.3745]
[1721242809133,15.56,156.94,156.89,15.56]
[1721242809333,6.3724,156.93,156.89,15.56]
[1721242809548,15.56,156.94,156.88,15.56]
[1721242809749,6.3727,156.92,156.88,15.56]
[1721242809956,6.3731,156.91,156.88,15.56]
[1721242810246,6.3731,156.91,156.89,1.27455664]
[1721242811030,15.56,156.93,156.89,1.27458456]
[1721242811230,6.3728,156.92,156.89,1.27458456]
[1721242811727,15.56,156.93,156.89,1.27458456]
[1721242811728,6.373,156.91,156.89,1.27458456]
[1721242811928,6.373,156.91,156.88,15.56]
[1721242812228,6.3735,156.9,156.88,15.56]
[1721242812954,6.3735,156.9,156.86,1.27459861]
[1721242813158,6.3735,156.9,156.87,15.56]
[1721242813362,6.3735,156.9,156.88,1.27467241]
[1721242816466,6.3732,156.91,156.88,1.27467241]
[1721242817563,6.3732,156.91,156.87,15.56]
[1721242818768,6.3732,156.91,156.87,21.9346]
[1721242819763,6.3732,156.91,156.88,1.27458822]
[1721242820559,6.3728,156.92,156.88,1.27458822]
[1721242821042,6.3728,156.92,156.88,16.83458822]
[1721242821438,6.3728,156.92,156.88,1.27458822]
[1721242821961,6.3732,156.91,156.88,1.27458822]
[1721242822640,6.3732,156.91,156.87,15.56]
[1721242823142,6.3732,156.91,156.88,1.27456733]
[1721242823461,6.64232069,156.94,156.88,1.27456733]
[1721242823779,20.0,156.93,156.88,15.56]
[1721242824078,6.3735,156.9,156.87,15.56]
[1721242825166,6.3732,156.91,156.87,15.56]
[1721242825642,6.3735,156.9,156.87,15.56]
[1721242826170,6.3742,156.89,156.86,16.83457363]
[1721242827033,6.3742,156.89,156.86,15.56]
[1721242827253,6.3744,156.88,156.86,15.56]
[1721242827453,6.3744,156.88,156.85,31.5532]
[1721242827880,6.374,156.89,156.86,1.27476772]
[1721242828784,6.374,156.89,156.85,31.5532]
[1721242830673,6.374,156.89,156.86,1.2747466]
[1721242831480,6.374,156.89,156.85,31.5532]
[1721242832282,6.374,156.89,156.86,1.27474725]
[1721242832885,6.374,156.89,156.85,31.5532]
[1721242834665,6.3743,156.88,156.85,15.56]
[1721242834875,6.3743,156.88,156.84,44.3225]
[1721242835684,6.374,156.89,156.84,44.3225]
[1721242836683,15.56,156.9,156.84,7.72235058]
[1721242836859,15.9329,156.91,156.85,1.27475058]
[1721242837055,6.3747,156.88,156.85,1.27475058]
[1721242837676,6.3747,156.87,156.85,1.27475058]
[1721242837879,6.3744,156.88,156.85,1.27475058]
[1721242838408,6.3748,156.87,156.85,1.27475058]
[1721242839378,21.934,156.89,156.86,1.27491227]
[1721242839684,6.374,156.89,156.86,1.27491227]
[1721242842073,15.56,156.9,156.86,1.27491227]
[1721242842476,32.218,156.91,156.86,16.83491227]
[1721242842675,6.3739,156.89,156.86,16.83491227]
[1721242843163,6.3735,156.9,156.85,6.3755]
[1721242843486,6.3739,156.89,156.85,15.56]
[1721242845702,6.3745,156.88,156.85,15.56]
[1721242845990,6.3751,156.86,156.85,16.83481782]
[1721242846201,6.3747,156.87,156.84,22.0076]
[1721242847271,6.3744,156.88,156.84,22.0076]
[1721242848073,6.3744,156.88,156.85,1.27485279]
[1721242848272,6.3744,156.88,156.86,1.27485257]
[1721242849200,6.3744,156.88,156.85,1.27485297]
[1721242849403,6.3744,156.88,156.86,1.2748528]
[1721242850495,6.3738,156.9,156.86,1.2748528]
[1721242850682,6.3739,156.89,156.86,1.2748528]
[1721242852117,6.3739,156.89,156.86,16.8348528]
[1721242854005,6.3743,156.88,156.86,16.8348528]
[1721242854194,6.3743,156.88,156.87,1.2747765]
[1721242854793,6.3739,156.89,156.86,15.56]
[1721242855305,6.3736,156.9,156.86,15.56]
[1721242855507,6.3739,156.89,156.86,15.56]
[1721242856209,35.9313,156.93,156.87,1.27467918]
[1721242856516,51.4913,156.93,156.88,15.56]
[1721242857073,35.9313,156.93,156.88,15.56]
[1721242857302,51.4913,156.93,156.88,15.56]
[1721242858379,6.3734,156.9,156.88,15.56]
[1721242859513,6.3739,156.89,156.87,15.56]
[1721242861199,6.3734,156.9,156.87,15.56]
[1721242861377,6.3731,156.91,156.89,15.56]
[1721242861575,6.64232069,156.94,156.89,15.56]
[1721242861576,6.64232069,156.94,156.9,1.44444205]
[1721242861780,6.64232069,156.94,156.93,15.56]
[1721242862287,6.64232069,156.94,156.91,1.44422225]
[1721242862487,6.64232069,156.94,156.92,15.56]
[1721242862706,6.64232069,156.94,156.93,1.27425698]
[1721242862707,13.01412069,156.94,156.93,1.27425698]
[1721242863088,13.01412069,156.94,156.93,15.56]
[1721242863291,6.3718,156.94,156.93,15.56]
[1721242863883,6.3718,156.94,156.91,1.44419498]
[1721242864085,6.3727,156.92,156.9,0.17]
[1721242864402,6.3727,156.92,156.91,15.56]
[1721242864604,6.3727,156.92,156.9,15.9]
[1721242864994,6.3727,156.92,156.9,15.73]
[1721242866312,6.3724,156.93,156.9,15.73]
[1721242866889,6.3724,156.93,156.91,15.56]
[1721242867291,6.3726,156.92,156.9,15.56]
[1721242867993,6.3724,156.93,156.9,15.56]
[1721242869289,6.3719,156.94,156.9,15.56]
[1721242870612,6.3719,156.94,156.91,1.27434601]
[1721242871915,6.3719,156.94,156.9,15.56]
[1721242872117,6.3719,156.94,156.91,16.83434759]
[1721242876121,6.3719,156.94,156.91,15.56]
[1721242879118,16.094,156.99,156.91,15.56]
[1721242879312,6.371,156.96,156.91,6.373]
[1721242879507,6.371,156.96,156.94,15.56]
[1721242879716,6.371,156.96,156.95,1.27414168]
[1721242880521,6.3714,156.95,156.94,15.56]
[1721242880821,6.3714,156.95,156.93,15.56]
[1721242881520,6.3718,156.94,156.9,16.2734]
[1721242881727,6.3718,156.94,156.93,15.56]
[1721242882219,6.3715,156.95,156.93,15.56]
[1721242882433,6.3715,156.95,156.94,1.27418954]
[1721242883719,6.3718,156.94,156.93,15.56]
[1721242884909,6.3726,156.92,156.89,6.3172]
[1721242885233,6.3726,156.92,156.89,21.8772]
[1721242885430,15.9279,156.96,156.87,15.56]
[1721242885431,15.9298,156.94,156.87,15.56]
[1721242885598,6.3734,156.9,156.87,15.56]
[1721242885934,6.3734,156.9,156.88,15.56]
[1721242886129,6.3738,156.89,156.86,15.56]
[1721242886312,6.3738,156.89,156.87,1.27472043]
[1721242886831,6.3738,156.89,156.86,16.83470462]
[1721242887196,15.56,156.91,156.86,16.83470462]
[1721242887197,6.3735,156.9,156.86,16.83470462]
[1721242888128,6.3739,156.89,156.86,16.83470462]
[1721242890719,6.3743,156.88,156.86,1.27470462]
[1721242891134,6.3739,156.89,156.86,1.27470462]
[1721242892446,6.3739,156.89,156.86,16.83470462]
[1721242894252,6.3744,156.88,156.86,1.27470462]
[1721242896033,6.374,156.89,156.86,1.27470462]
[1721242896346,6.3743,156.88,156.87,1.27475414]
[1721242896518,6.3743,156.88,156.85,21.7427]
[1721242896718,6.3743,156.88,156.86,1.27477409]
[1721242897347,15.932,156.92,156.85,21.7427]
[1721242897536,15.932,156.92,156.86,1.27477387]
[1721242897739,6.3741,156.89,156.86,1.27477387]
[1721242898636,6.3735,156.9,156.86,1.27477387]
[1721242899530,6.3735,156.9,156.86,16.83477387]
[1721242900442,6.3731,156.91,156.86,23.20977387]
[1721242900839,6.3734,156.9,156.86,23.20977387]
[1721242901339,6.3734,156.9,156.86,16.83477387]
[1721242901640,6.3734,156.9,156.86,23.20987387]
[1721242901837,6.3732,156.91,156.86,23.20987387]
[1721242903131,6.3735,156.9,156.86,16.83477387]
[1721242905980,6.3728,156.92,156.87,6.3746]
[1721242906166,6.3731,156.91,156.88,1.27462217]
[1721242906638,6.3731,156.91,156.86,37.8719]
[1721242907159,6.3731,156.91,156.87,1.27457581]
[1721242907327,20.0,156.93,156.88,15.56]
[1721242907652,20.0,156.93,156.89,16.83443873]
[1721242907824,20.0,156.93,156.9,1.27444114]
[1721242908155,26.3723,156.93,156.9,1.27444114]
[1721242908534,6.3732,156.91,156.88,15.56]
[1721242908747,6.3732,156.91,156.89,1.27453782]
[1721242908924,6.3732,156.91,156.88,15.56]
[1721242909741,6.3727,156.92,156.88,15.56]
[1721242909937,6.373,156.91,156.88,15.56]
[1721242914256,6.373,156.91,156.89,1.2745398]
[1721242914565,6.373,156.91,156.9,1.2745678]
[1721242915659,6.373,156.91,156.89,1.27453749]
[1721242915828,6.373,156.91,156.9,1.27453599]
[1721242916855,6.373,156.91,156.89,1.27453599]
[1721242917057,6.373,156.91,156.9,1.27453789]
[1721242917266,6.3727,156.92,156.9,1.27453789]
[1721242918562,6.373,156.91,156.9,1.27453789]
[1721242919846,6.373,156.91,156.89,15.56]
[1721242920033,6.3734,156.9,156.89,15.56]
[1721242921169,6.3734,156.9,156.88,15.56]
[1721242922167,6.3731,156.91,156.88,15.56]
[1721242922542,6.3734,156.9,156.88,15.56]
[1721242923333,6.3732,156.91,156.88,15.56]
[1721242923540,31.16,156.94,156.86,15.9369]
[1721242923541,6.3735,156.9,156.86,15.9369]
[1721242923736,6.3735,156.9,156.88,15.56]
[1721242924070,6.3735,156.9,156.89,1.27459249]
[1721242924257,6.3735,156.9,156.88,15.56]
[1721242924661,6.3738,156.89,156.88,15.56]
[1721242925035,6.3735,156.9,156.88,15.56]
[1721242927066,6.3735,156.9,156.87,15.56]
[1721242927875,31.16,156.94,156.87,15.56]
[1721242927876,31.16,156.94,156.88,1.27460874]
[1721242928179,6.3727,156.92,156.88,16.83460874]
[1721242929365,6.3731,156.91,156.88,15.56]
[1721242929972,6.3731,156.91,156.89,1.27448789]
[1721242930747,6.3731,156.91,156.88,15.56]
[1721242931875,6.3736,156.9,156.88,15.56]
[1721242932470,6.3736,156.9,156.87,15.56]
[1721242932674,6.3736,156.9,156.88,1.27460144]
[1721242934060,6.3736,156.9,156.88,1.27460003]
[1721242934395,6.3736,156.9,156.87,15.56]
[1721242934752,6.3736,156.9,156.88,1.27460937]
[1721242936771,6.3732,156.91,156.88,16.83460937]
[1721242938401,6.3735,156.9,156.88,16.83460937]
[1721242938687,6.3735,156.9,156.89,1.27460915]
[1721242939585,6.3735,156.9,156.88,1.27460444]
[1721242941583,6.3731,156.91,156.88,16.83460444]
[1721242942080,6.3731,156.91,156.89,45.0]
[1721242942259,6.3731,156.91,156.9,1.2744716]
[1721242942459,6.3731,156.91,156.89,45.0]
[1721242943084,6.3731,156.91,156.89,46.27448843]
[1721242944083,6.3731,156.91,156.89,61.83448843]
[1721242945361,6.3734,156.9,156.89,60.56]
[1721242945570,6.3734,156.9,156.89,45.0]
[1721242945784,6.3734,156.9,156.88,45.0]
[1721242946282,6.3738,156.89,156.88,45.0]
[1721242946986,6.3735,156.9,156.87,60.56]
[1721242951199,6.3732,156.91,156.87,60.56]
[1721242952070,6.3732,156.91,156.87,66.9347]
[1721242952399,6.3727,156.92,156.88,16.83457885]
[1721242952588,6.3727,156.92,156.89,45.0]
[1721242952890,6.3727,156.92,156.9,1.27449071]
[1721242953391,6.3724,156.93,156.9,1.27449071]
[1721242953996,6.3719,156.94,156.91,15.56]
[1721242954202,6.3719,156.94,156.92,46.27432717]
[1721242955171,6.3722,156.93,156.92,46.27432717]
[1721242955684,6.3722,156.93,156.92,45.0]
[1721242955873,6.3726,156.92,156.91,45.0]
[1721242956594,6.3723,156.93,156.91,45.0]
[1721242959688,6.3727,156.92,156.9,15.56]
[1721242959893,6.3727,156.92,156.89,15.56]
[1721242960100,6.3727,156.92,156.9,45.0]
[1721242960598,6.373,156.91,156.88,15.56]
[1721242960798,6.373,156.91,156.89,1.27456436]
[1721242960990,6.3727,156.92,156.9,1.27456283]
[1721242961995,6.3727,156.92,156.89,1.27454892]
[1721242962287,6.3727,156.92,156.9,1.27454194]
[1721242963404,15.929,156.95,156.88,15.56]
[1721242963706,15.929,156.95,156.89,45.0]
[1721242963887,6.3729,156.92,156.89,45.0]
[1721242964079,15.929,156.95,156.87,15.9363]
[1721242964080,6.3731,156.91,156.87,15.9363]
[1721242964278,6.3731,156.91,156.88,60.56]
[1721242964478,6.3731,156.91,156.88,45.0]
[1721242965485,6.3727,156.92,156.89,1.27459227]
[1721242965684,6.3727,156.92,156.89,1.27456761]
[1721242966182,21.8306,156.93,156.89,1.27456761]
[1721242966387,21.8306,156.93,156.9,1.2745724]
[1721242966901,21.8306,156.93,156.89,15.56]
[1721242967502,6.3727,156.92,156.89,15.56]
[1721242967998,21.8306,156.93,156.9,1.27454637]
[1721242968194,21.8306,156.93,156.89,15.56]
[1721242969402,15.4583,156.93,156.89,15.56]
[1721242969609,6.3727,156.92,156.88,66.9342]
[1721242969779,6.3727,156.92,156.88,51.3742]
[1721242970402,21.8307,156.93,156.88,51.3742]
[1721242973102,6.3726,156.92,156.88,45.0]
[1721242975306,6.3726,156.92,156.88,51.3742]
[1721242978493,6.3726,156.92,156.89,1.27458441]
[1721242980008,21.8307,156.93,156.89,1.27458441]
[1721242980197,6.3727,156.92,156.89,1.27458441]
[1721242980405,21.8308,156.93,156.9,1.27458337]
[1721242980592,21.8308,156.93,156.9,46.27458337]
[1721242980797,21.8308,156.93,156.9,45.0]
[1721242981183,21.8308,156.93,156.9,46.27446585]
[1721242981386,21.8308,156.93,156.9,45.0]
[1721242981796,21.8308,156.93,156.89,46.27447105]
[1721242982002,6.372,156.94,156.9,1.27445228]
[1721242982605,6.372,156.94,156.9,16.83445228]
[1721242982816,6.372,156.94,156.91,45.0]
[1721242982993,6.372,156.94,156.92,1.27436487]
[1721242983404,6.3722,156.93,156.92,1.27436487]
[1721242983988,6.372,156.94,156.92,1.27436487]
[1721242984400,6.3722,156.93,156.92,1.27436487]
[1721242984713,6.3722,156.93,156.91,45.0]
[1721242984913,30.9287,156.97,156.9,45.0]
[1721242985111,6.373,156.91,156.9,45.0]
[1721242985315,6.3734,156.9,156.89,45.0]
[1721242985499,6.3734,156.9,156.88,45.0]
[1721242985696,6.3734,156.9,156.87,60.56]
[1721242985902,6.3731,156.91,156.87,60.56]
[1721242988616,6.3731,156.91,156.88,1.27461783]
[1721242988910,6.3728,156.92,156.88,1.27461783]
[1721242990409,106.3723,156.93,156.88,7.64871783]
[1721242991530,6.3727,156.92,156.88,7.64871783]
[1721242991915,6.3727,156.92,156.88,1.27461783]
[1721242994223,21.9898,156.92,156.88,1.27461783]
[1721242995211,21.9898,156.92,156.87,66.9345]
[1721242995399,6.3731,156.91,156.87,66.9345]
[1721242996324,6.3731,156.91,156.88,1.27461812]
[1721242996624,21.9898,156.92,156.89,1.27461848]
[1721242998121,21.9898,156.92,156.88,1.27461649]
[1721243000317,21.9898,156.92,156.87,66.9345]
[1721243000624,6.3731,156.91,156.87,51.3745]
[1721243001308,21.9346,156.88,156.83,37.8758]
[1721243001538,21.9346,156.88,156.84,1.27492814]
[1721243001896,21.9346,156.88,156.84,7.65072814]
[1721243003229,21.9346,156.88,156.84,1.27492814]
[1721243003402,21.9346,156.88,156.84,46.27492814]
[1721243006432,15.56,156.88,156.84,52.65062814]
[1721243006616,15.56,156.89,156.84,61.83492814]
[1721243006810,15.56,156.89,156.85,6.3754]
[1721243007010,15.56,156.89,156.86,46.27478419]
[1721243007730,21.9339,156.89,156.86,46.27478419]
[1721243008028,21.9339,156.89,156.87,1.2747859]
[1721243008226,6.3739,156.89,156.87,1.2747859]
[1721243008409,6.3739,156.89,156.85,51.3754]
[1721243009028,6.3743,156.88,156.85,45.0]
[1721243009419,6.3738,156.9,156.86,1.27478335]
[1721243009728,15.6171,156.92,156.86,1.27478335]
[1721243009729,6.374,156.89,156.86,1.27478335]
[1721243010513,6.3744,156.88,156.85,45.0]
[1721243011529,6.3747,156.87,156.85,45.0]
[1721243011728,6.3747,156.87,156.84,45.0]
[1721243012216,6.3744,156.88,156.84,45.0]
[1721243012419,6.3744,156.88,156.85,1.27484071]
[1721243012729,6.3744,156.88,156.86,1.27483689]
[1721243013035,6.3744,156.88,156.84,51.3759]
[1721243013209,15.6171,156.92,156.85,1.27484045]
[1721243013210,6.374,156.89,156.85,1.27484045]
[1721243013512,6.374,156.89,156.86,1.27477521]
[1721243014512,6.374,156.89,156.87,1.27477644]
[1721243014713,6.374,156.89,156.85,1.27477555]
[1721243015022,6.374,156.89,156.86,1.27477547]
[1721243016104,6.374,156.89,156.87,1.27477546]
[1721243016307,6.374,156.89,156.85,1.27477535]
[1721243016533,6.374,156.89,156.86,1.27477532]
[1721243017416,6.3743,156.88,156.87,1.27477563]
[1721243017616,6.3743,156.88,156.85,1.27478517]
[1721243017818,6.3743,156.88,156.86,1.27478493]
[1721243018437,6.3747,156.87,156.86,1.27478493]
[1721243018811,6.3747,156.87,156.85,1.2748609]
[1721243019010,6.3747,156.87,156.86,1.27486854]
[1721243019310,6.3747,156.87,156.85,1.27486976]
[1721243019635,6.3747,156.87,156.86,1.27488362]
[1721243020716,6.3747,156.87,156.85,1.27487422]
[1721243021043,6.3747,156.87,156.86,1.27489246]
[1721243021516,6.3747,156.87,156.84,45.0]
[1721243021719,6.3747,156.87,156.85,1.27489422]
[1721243022620,6.3747,156.87,156.84,45.0]
[1721243023413,6.3747,156.87,156.85,1.27492584]
[1721243024443,21.6531,156.87,156.85,1.27492584]
[1721243024741,15.2784,156.87,156.81,1.27493209]
[1721243025127,6.3752,156.86,156.81,23.21183209]
[1721243026028,15.2784,156.87,156.82,45.0]
[1721243026345,6.3755,156.85,156.81,45.0]
[1721243026723,6.3752,156.86,156.81,51.377]
[1721243027125,6.3755,156.85,156.81,51.377]
[1721243027342,6.3764,156.83,156.81,45.0]
[1721243027540,6.3754,156.86,156.81,45.0]
[1721243029049,21.6531,156.87,156.81,45.0]
[1721243029832,6.3752,156.86,156.81,51.377]
[1721243030622,6.3752,156.86,156.82,1.27509562]
[1721243030822,6.3752,156.86,156.83,1.27509572]
[1721243031945,6.3752,156.86,156.82,1.27509592]
[1721243032145,6.3755,156.85,156.81,45.0]
[1721243035056,16.2294,156.91,156.83,15.56]
[1721243035361,16.2294,156.91,156.82,1.27509788]
[1721243035362,21.9339,156.89,156.84,84.1499393]
[1721243035525,21.9336,156.9,156.85,6.3755]
[1721243035721,21.9336,156.9,156.86,46.2747478]
[1721243036455,6.3736,156.9,156.86,46.2747478]
[1721243037155,15.3774,156.95,156.87,22.1681]
[1721243037325,15.56,156.92,156.88,61.83453446]
[1721243037743,15.56,156.93,156.88,61.83453446]
[1721243037961,21.9323,156.93,156.88,61.83453446]
[1721243038252,6.3723,156.93,156.89,15.56]
[1721243038456,6.3723,156.93,156.9,46.27442278]
[1721243038836,6.3718,156.95,156.9,61.83442278]
[1721243039044,6.3722,156.94,156.9,61.83442278]
[1721243039435,6.3722,156.94,156.91,1.27433515]
[1721243039634,15.1042,156.99,156.91,1.27433515]